bitfinex-derivatives/quotes_ETHF0:USTF0_20250727
["timestamp","ask_amount","ask_price","bid_price","bid_amount"]
[1753620200644,5.97683,3815.2,3815.1,4.6681]
[1753620201243,5.97683,3815.2,3815.1,8.7212]
[1753620201542,1.77273,3815.2,3815.1,8.7212]
[1753620202047,3.66943,3815.2,3815.1,8.7212]
[1753620202247,5.97683,3815.2,3815.1,8.7212]
[1753620203648,5.97683,3815.2,3815.1,6.2749]
[1753620203849,5.4528,3815.2,3815.1,9.24524]
[1753620204545,5.97683,3815.2,3815.1,8.7212]
[1753620204851,5.97683,3815.2,3815.1,3.2078]
[1753620205045,0.52411,3814.6,3814.5,5.5498]
[1753620205248,5.97691,3814.6,3814.5,7.0101]
[1753620205849,5.97691,3814.6,3814.5,7.53423]
[1753620206050,5.97691,3814.6,3814.5,8.21293]
[1753620206246,5.4528,3814.6,3814.5,9.24533]
[1753620206849,5.4528,3814.9,3814.8,6.03749]
[1753620207044,0.8729,3815.4,3815.0,3.5529]
[1753620207248,3.2078,3815.8,3813.9,37.764]
[1753620207249,2.4381,3815.7,3815.3,5.5134]
[1753620207549,5.1553,3815.4,3815.3,6.03742]
[1753620207740,3.2175,3815.4,3815.3,6.03742]
[1753620208146,4.6313,3815.4,3815.3,6.03742]
[1753620208344,5.5196,3815.4,3815.3,6.03742]
[1753620208545,3.84553,3815.2,3815.1,6.60024]
[1753620208746,6.14763,3815.2,3815.1,6.60024]
[1753620209050,6.14763,3815.2,3815.1,8.18274]
[1753620209243,5.6236,3815.2,3815.1,9.23524]
[1753620209449,1.7928,3815.2,3815.1,9.23524]
[1753620209747,6.5293,3815.8,3815.7,1.20026]
[1753620210048,6.14755,3815.8,3815.7,1.5131]
[1753620210754,6.14761,3815.4,3815.3,0.52401]
[1753620210951,6.1476,3815.4,3815.3,2.03711]
[1753620211153,5.6236,3815.4,3815.3,4.97491]
[1753620211351,5.6236,3815.4,3815.3,6.02741]
[1753620211853,5.6236,3815.4,3815.3,9.23521]
[1753620212256,3.3215,3815.4,3815.3,9.23521]
[1753620212655,2.2458,3815.4,3815.3,9.23521]
[1753620213349,0.2,3815.9,3815.3,9.23521]
[1753620213350,0.9171,3815.9,3815.8,0.52395]
[1753620213544,1.5192,3815.9,3815.8,9.23515]
[1753620213747,6.34753,3815.9,3815.8,9.23515]
[1753620215460,3.5215,3815.9,3815.8,9.23515]
[1753620215756,4.04543,3815.9,3815.8,9.23515]
[1753620215958,6.34753,3815.9,3815.8,9.23515]
[1753620216449,5.8236,3815.9,3815.8,9.23515]
[1753620216649,6.34753,3815.9,3815.8,9.23515]
[1753620217448,6.34753,3815.9,3815.8,7.6587]
[1753620217644,2.76977,3815.7,3815.6,2.03707]
[1753620217849,2.76977,3815.7,3815.6,9.23517]
[1753620218057,2.04314,3815.9,3815.8,6.02735]
[1753620218257,1.5192,3815.9,3815.8,6.02735]
[1753620218450,0.2,3815.9,3815.8,6.02735]
[1753620219755,5.45923,3815.9,3815.8,6.02735]
[1753620219955,6.34753,3815.9,3815.8,6.02735]
[1753620220252,3.5215,3815.9,3815.8,6.02735]
[1753620220453,4.04543,3815.9,3815.8,6.02735]
[1753620220653,2.4458,3815.9,3815.8,6.02735]
[1753620220953,2.96973,3815.9,3815.8,6.02735]
[1753620221155,0.2,3815.9,3815.8,6.02735]
[1753620222546,4.9353,3815.9,3815.8,6.02735]
[1753620222753,5.8236,3815.9,3815.8,6.02735]
[1753620223353,2.4458,3815.9,3815.8,6.02735]
[1753620223552,1.5192,3815.9,3815.8,6.02735]
[1753620223752,0.2,3815.9,3815.8,6.02735]
[1753620224451,4.9353,3815.9,3815.8,6.02735]
[1753620224652,5.8236,3815.9,3815.8,6.02735]
[1753620224852,3.5215,3815.9,3815.8,6.02735]
[1753620226249,2.4895,3815.8,3815.7,3.5569]
[1753620226449,6.14755,3815.8,3815.7,1.13086]
[1753620226948,6.14755,3815.8,3815.7,3.40456]
[1753620227147,5.6236,3815.8,3815.7,6.02736]
[1753620227555,6.14755,3815.8,3815.7,6.02736]
[1753620228357,5.6236,3815.8,3815.7,6.02736]
[1753620228766,4.7353,3815.8,3815.7,6.02736]
[1753620229358,5.6236,3815.8,3815.7,6.02736]
[1753620229661,6.14755,3815.8,3815.7,6.02736]
[1753620230657,6.14755,3815.8,3815.7,4.4509]
[1753620230859,6.14755,3815.8,3815.7,4.8271]
[1753620230860,6.95231855,3815.8,3815.7,4.8271]
[1753620231052,6.95231855,3815.8,3815.7,2.8806]
[1753620231252,6.95231855,3815.8,3815.7,3.40456]
[1753620231458,6.14755,3815.8,3815.7,6.02736]
[1753620232358,6.14755,3815.8,3815.7,5.5034]
[1753620232764,6.95236508,3815.8,3815.7,0.6069]
[1753620232961,2.76976,3815.7,3815.6,3.2078]
[1753620233258,6.14756,3815.7,3815.6,3.2078]
[1753620233465,6.14762,3815.3,3815.2,3.2078]
[1753620234458,4.0949,3815.3,3815.2,9.23523]
[1753620234658,5.22102,3815.3,3815.2,9.23523]
[1753620234858,6.14762,3815.3,3815.2,9.23523]
[1753620235963,3.84552,3815.3,3815.2,9.23523]
[1753620236168,6.14762,3815.3,3815.2,9.23523]
[1753620238170,5.6236,3815.3,3815.2,9.23523]
[1753620238373,1.2569,3815.6,3815.5,2.63148]
[1753620238672,1.2569,3815.6,3815.5,5.85608]
[1753620239069,0.6611,3815.8,3815.7,1.5357]
[1753620239270,0.2,3815.9,3815.8,5.85605]
[1753620239770,3.69233,3815.9,3815.8,5.85605]
[1753620239977,3.388,3815.9,3815.8,5.85605]
[1753620240170,2.3257,3815.9,3815.8,5.85605]
[1753620240370,2.84963,3815.9,3815.8,5.85605]
[1753620240676,5.95556,3815.7,3815.6,25.9315]
[1753620240974,5.95556,3815.7,3815.6,3.2078]
[1753620241671,5.95556,3815.7,3815.6,3.72748842]
[1753620241867,5.95556,3815.7,3815.6,3.20350842]
[1753620242975,5.95556,3815.7,3815.6,3.77530842]
[1753620244168,5.95556,3815.7,3815.6,4.63020842]
[1753620244470,0.6611,3815.7,3815.6,9.05958842]
[1753620244772,1.78086,3815.7,3815.6,9.05958842]
[1753620244972,3.71196,3815.7,3815.6,9.05958842]
[1753620245176,5.95556,3815.7,3815.6,9.05958842]
[1753620245567,5.4316,3815.7,3815.6,9.05958842]
[1753620252174,5.4316,3815.7,3815.6,30.34758842]
[1753620252370,2.3257,3815.9,3815.8,2.63145]
[1753620252574,5.6316,3815.9,3815.8,5.85605]
[1753620255385,6.15553,3815.9,3815.8,5.85605]
[1753620255683,5.6316,3815.9,3815.8,5.85605]
[1753620256082,6.15553,3815.9,3815.8,5.85605]
[1753620256285,5.6316,3815.9,3815.8,5.85605]
[1753620256882,6.15553,3815.9,3815.8,5.85605]
[1753620258775,1.78086,3815.7,3815.6,4.63020842]
[1753620258981,5.95556,3815.7,3815.6,28.10360842]
[1753620259181,5.95556,3815.7,3815.6,7.34456842]
[1753620259378,5.95556,3815.7,3815.6,29.66076842]
[1753620259786,5.95556,3815.7,3815.6,30.34156842]
[1753620260484,5.95556,3815.7,3815.6,9.05956842]
[1753620260683,5.95556,3815.7,3815.6,3.20350842]
[1753620260981,5.95556,3815.7,3815.6,24.48450842]
[1753620261180,5.95556,3815.7,3815.6,27.24670842]
[1753620261484,5.95556,3815.7,3815.6,28.10160842]
[1753620262987,5.95556,3815.7,3815.6,6.82060842]
[1753620263181,5.95556,3815.7,3815.6,28.09960842]
[1753620263381,5.95556,3815.7,3815.6,28.62358842]
[1753620263582,5.95556,3815.7,3815.6,29.13380842]
[1753620265283,5.95556,3815.7,3815.6,29.65778842]
[1753620265482,5.95556,3815.7,3815.6,29.13380842]
[1753620265684,5.95556,3815.7,3815.6,29.81460842]
[1753620266287,5.95556,3815.7,3815.6,30.33857842]
[1753620268189,5.95556,3815.7,3815.6,29.81460842]
[1753620268687,5.95556,3815.7,3815.6,3.20350842]
[1753620268989,5.78618,3815.6,3815.5,21.275]
[1753620269284,5.78622,3815.3,3815.2,3.2078]
[1753620269488,5.78622,3815.3,3815.2,24.4828]
[1753620270291,5.78622,3815.3,3815.2,3.2078]
[1753620273486,5.78622,3815.3,3815.2,4.7177]
[1753620273693,5.78622,3815.3,3815.2,7.9785]
[1753620274395,5.78622,3815.3,3815.2,6.9565]
[1753620274891,5.78622,3815.3,3815.2,3.2078]
[1753620275388,5.78627,3814.9,3814.8,4.6734]
[1753620275587,5.78627,3814.9,3814.8,3.821]
[1753620275791,5.78627,3814.9,3814.8,3.2078]
[1753620275996,2.66273,3814.5,3814.4,2.1423]
[1753620276190,4.43394,3814.5,3814.2,1.3864]
[1753620276388,5.78635,3814.3,3814.2,3.12]
[1753620277094,5.78635,3814.3,3814.2,5.4031]
[1753620279895,1.75985,3814.3,3814.2,5.4031]
[1753620280995,3.62355,3814.3,3814.2,5.4031]
[1753620281194,5.78635,3814.3,3814.2,5.4031]
[1753620281987,3.62355,3814.3,3814.2,5.4031]
[1753620282195,1.75985,3814.3,3814.2,5.4031]
[1753620283988,4.03015,3814.3,3814.2,5.4031]
[1753620284198,4.88345,3814.3,3814.2,5.4031]
[1753620284396,5.78635,3814.3,3814.2,5.4031]
[1753620287691,4.93305,3814.3,3814.2,5.4031]
[1753620287895,5.78635,3814.3,3814.2,5.4031]
[1753620290299,0.52415,3814.3,3814.2,5.92727]
[1753620290803,0.52414,3814.4,3814.3,5.92724]
[1753620291003,0.52413,3814.5,3814.4,2.62213]
[1753620291198,0.52412,3814.6,3814.5,2.62212]
[1753620291399,0.52412,3814.6,3814.5,5.92722]
[1753620292003,0.52409,3814.8,3814.7,5.4031]
[1753620292404,2.66273,3814.5,3814.4,8.6109]
[1753620292602,4.93307,3814.2,3814.1,5.4031]
[1753620292902,5.78637,3814.2,3814.1,5.4031]
[1753620297408,5.78637,3814.2,3814.1,5.92728]
[1753620297610,5.78637,3814.2,3814.1,5.4031]
[1753620298207,5.78637,3814.2,3814.1,5.92728]
[1753620298410,5.78637,3814.2,3814.1,5.4031]
[1753620298603,4.93307,3814.2,3814.1,5.92728]
[1753620300609,5.80827,3814.2,3814.1,5.92728]
[1753620301911,5.80827,3814.2,3814.1,5.4031]
[1753620302212,1.75987,3814.2,3814.1,5.4031]
[1753620302607,2.72867,3814.2,3814.1,5.4031]
[1753620303010,2.72867,3814.2,3814.1,5.92728]
[1753620303509,4.94687,3814.2,3814.1,5.92728]
[1753620303809,5.82817,3814.2,3814.1,5.92728]
[1753620304702,0.52416,3814.4,3814.3,0.52413]
[1753620304908,0.52416,3814.4,3814.3,2.66263]
[1753620305210,4.95646,3814.4,3814.3,5.84663]
[1753620305404,5.83166,3814.4,3814.3,5.84663]
[1753620305805,5.83166,3814.4,3814.3,8.5303]
[1753620307711,5.83157,3814.9,3814.8,5.3225]
[1753620308010,6.63650739,3814.9,3814.8,8.5303]
[1753620308610,1.41101646,3815.7,3815.6,1.7389]
[1753620308812,1.14149143,3815.7,3815.6,27.22878]
[1753620309116,5.3075,3815.7,3815.6,27.22878]
[1753620309610,5.83146,3815.7,3815.6,24.4548]
[1753620309816,6.09759293,3815.7,3815.6,24.4548]
[1753620310910,6.09759293,3815.7,3815.6,26.7038]
[1753620311116,2.38053293,3815.7,3815.6,27.22778]
[1753620311311,2.1144,3815.7,3815.6,27.22778]
[1753620311620,3.9645,3815.7,3815.6,27.22778]
[1753620311918,4.48846,3815.7,3815.6,26.7038]
[1753620312420,5.83146,3815.7,3815.6,26.7038]
[1753620312821,5.83146,3815.7,3815.6,24.4508]
[1753620313309,5.83146,3815.7,3815.6,3.2078]
[1753620313519,6.09745158,3815.7,3815.6,3.2078]
[1753620313817,5.83154,3815.1,3815.0,3.2078]
[1753620314217,5.83157,3814.9,3814.8,2.249]
[1753620314418,5.83157,3814.9,3814.8,23.49]
[1753620315217,5.83157,3814.9,3814.8,24.01409]
[1753620315814,5.3075,3814.9,3814.8,24.01409]
[1753620316026,5.83157,3814.9,3814.8,24.01409]
[1753620316422,0.52402,3815.3,3814.8,24.01409]
[1753620316629,5.83152,3815.3,3815.2,2.249]
[1753620316837,5.83152,3815.3,3815.2,24.01303]
[1753620317021,0.8752,3815.3,3815.2,24.01303]
[1753620318432,3.2832,3815.9,3815.8,2.77295]
[1753620318623,3.2832,3815.9,3815.8,27.21975]
[1753620318922,4.1645,3815.9,3815.8,27.21975]
[1753620319331,5.5075,3815.9,3815.8,27.21975]
[1753620320030,6.03143,3815.9,3815.8,27.21975]
[1753620320230,5.5075,3815.9,3815.8,27.21975]
[1753620320631,6.03143,3815.9,3815.8,27.21975]
[1753620321232,4.1645,3815.9,3815.8,27.21975]
[1753620322128,4.68843,3815.9,3815.8,27.21975]
[1753620322833,4.68843,3815.9,3815.8,26.6958]
[1753620323028,6.03143,3815.9,3815.8,26.6958]
[1753620323223,6.03143,3815.9,3815.8,27.21975]
[1753620323431,1.6689,3815.9,3815.8,27.21975]
[1753620324341,4.68843,3815.9,3815.8,5.98075]
[1753620324531,6.03143,3815.9,3815.8,3.2078]
[1753620324724,5.83149,3815.5,3815.4,2.249]
[1753620324930,5.83149,3815.5,3815.4,23.482]
[1753620325133,5.83149,3815.5,3815.4,22.1399]
[1753620325529,5.83149,3815.5,3815.4,23.482]
[1753620326730,5.3075,3815.5,3815.4,24.006]
[1753620327131,5.3075,3815.5,3815.4,2.249]
[1753620327331,5.83149,3815.5,3815.4,23.481]
[1753620327727,5.3075,3815.5,3815.4,24.005]
[1753620327933,5.3075,3815.5,3815.4,24.1166]
[1753620328128,0.8752,3815.5,3815.4,24.1166]
[1753620328938,1.484,3815.5,3815.4,24.1166]
[1753620329134,2.176,3815.5,3815.4,24.1166]
[1753620329335,3.1523,3815.5,3815.4,24.1166]
[1753620330340,3.1523,3815.5,3815.4,2.8846]
[1753620330533,0.8752,3815.5,3815.4,24.1146]
[1753620330928,1.0685,3815.9,3815.8,2.94565]
[1753620331133,1.0685,3815.9,3815.8,24.17465]
[1753620332227,1.6773,3815.9,3815.8,24.17465]
[1753620332840,1.0685,3815.9,3815.8,24.17465]
[1753620334036,1.0685,3815.9,3815.8,2.94565]
[1753620334232,4.208,3815.9,3815.8,2.94565]
[1753620334438,5.5881,3815.9,3815.8,24.17265]
[1753620334640,5.5881,3815.9,3815.8,24.10495]
[1753620334831,5.5881,3815.9,3815.8,2.87795]
[1753620335139,5.91206,3815.7,3815.6,3.73177]
[1753620335341,5.91206,3815.7,3815.6,24.95778]
[1753620336131,5.91206,3815.7,3815.6,27.26948]
[1753620336536,1.4773,3815.7,3815.6,27.37948]
[1753620336844,0.8685,3815.8,3815.7,2.94566]
[1753620337242,1.4773,3815.8,3815.7,2.94566]
[1753620337540,0.8685,3815.8,3815.7,2.94566]
[1753620338132,2.1693,3815.8,3815.7,2.94566]
[1753620338336,3.1456,3815.8,3815.7,24.17066]
[1753620338642,0.8685,3815.8,3815.7,24.17066]
[1753620338840,0.8685,3816.4,3815.9,1.30982]
[1753620339042,0.8685,3816.8,3816.2,6.04339]
[1753620339334,2.1693,3816.8,3816.7,1.45322]
[1753620339536,2.1693,3816.8,3816.7,27.26732]
[1753620339743,3.1456,3816.8,3816.7,27.26732]
[1753620339940,4.008,3816.8,3816.7,27.26732]
[1753620340244,0.8685,3816.8,3816.7,27.26732]
[1753620341044,1.4773,3816.8,3816.7,27.26732]
[1753620341540,2.1693,3816.8,3816.7,27.26732]
[1753620342545,3.1456,3816.8,3816.7,27.26732]
[1753620343750,0.8685,3816.8,3816.7,27.26732]
[1753620344146,5.3881,3817.5,3817.4,2.83543]
[1753620344340,6.16929473,3817.5,3817.4,22.67213]
[1753620344948,6.16929473,3817.5,3817.4,22.67113]
[1753620345445,6.69300473,3817.5,3817.4,24.05343]
[1753620345640,6.16929473,3817.5,3817.4,24.05343]
[1753620346148,2.25849473,3817.5,3817.4,24.05343]
[1753620346351,2.95049473,3817.5,3817.4,24.05343]
[1753620346546,1.64969473,3817.5,3817.4,24.05343]
[1753620348453,0.8685,3817.5,3817.4,24.05343]
[1753620349151,0.8685,3817.5,3817.4,20.05343]
[1753620349349,0.8685,3817.5,3817.4,21.50656]
[1753620349653,2.3632,3817.9,3817.8,2.83537]
[1753620349850,2.3632,3817.9,3817.8,27.25817]
[1753620350150,3.3395,3817.9,3817.8,27.25817]
[1753620350348,6.11176,3817.9,3817.8,27.25817]
[1753620350548,5.5881,3817.9,3817.8,27.25817]
[1753620350953,1.0685,3817.9,3817.8,27.25817]
[1753620351956,0.2,3817.9,3817.8,27.25817]
[1753620352357,1.0685,3817.9,3817.8,27.25817]
[1753620352859,2.3693,3817.9,3817.8,27.25517]
[1753620353051,1.0685,3817.9,3817.8,27.25517]
[1753620356756,5.5881,3817.9,3817.8,27.25117]
[1753620357557,5.5881,3817.9,3817.8,27.27117]
[1753620358558,5.5881,3817.9,3817.8,27.25787]
[1753620358759,5.5881,3817.9,3817.8,27.27017]
[1753620358958,1.0685,3817.9,3817.8,27.27017]
[1753620359263,5.5034,3817.9,3817.8,27.26817]
[1753620360256,6.02706,3817.9,3817.8,25.3422]
[1753620360460,6.02706,3817.9,3817.8,24.4128]
[1753620360855,6.02706,3817.9,3817.8,3.2078]
[1753620361055,5.5034,3817.9,3817.8,24.93547]
[1753620361553,5.5034,3817.9,3817.8,25.79397]
[1753620361754,5.5034,3817.9,3817.8,27.19467]
[1753620362254,1.0685,3817.9,3817.8,27.21467]
[1753620362553,2.3248,3817.9,3817.8,27.21467]
[1753620365171,1.0685,3817.9,3817.8,27.21467]
[1753620366061,1.82679,3819.2,3819.0,0.5235]
[1753620366262,0.018,3819.3,3818.3,1.30902]
[1753620366263,3.4247,3818.8,3818.7,0.52355]
[1753620366470,3.4247,3818.8,3818.7,21.72355]
[1753620367462,3.94824,3818.8,3818.7,21.72255]
[1753620368060,5.85614,3818.8,3818.7,21.72255]
[1753620368271,5.3326,3818.8,3818.7,21.72255]
[1753620368462,5.85614,3818.8,3818.7,21.72255]
[1753620369158,5.3326,3818.8,3818.7,21.72255]
[1753620369568,5.85614,3818.8,3818.7,0.52355]
[1753620369868,5.85614,3818.8,3818.7,21.72055]
[1753620370370,5.3326,3818.8,3818.7,21.72055]
[1753620371367,5.3326,3818.8,3818.7,21.71955]
[1753620371772,5.3326,3818.8,3818.7,22.30685]
[1753620372367,5.3326,3818.8,3818.7,27.05735]
[1753620373465,1.2563,3818.8,3818.7,27.05735]
[1753620373671,2.1214,3819.1,3819.0,2.0907]
[1753620373868,2.1214,3819.1,3819.0,26.5328]
[1753620374063,3.2078,3819.6,3819.1,0.52348]
[1753620374268,3.2078,3819.6,3819.0,26.5328]
[1753620374269,1.3033,3820.7,3820.1,3.2078]
[1753620374460,2.08262076,3820.6,3820.5,3.2078]
[1753620374661,11.11192076,3820.6,3820.5,21.528]
[1753620374863,2.1214,3820.4,3820.3,22.05133]
[1753620375171,5.3326,3820.4,3820.3,22.05133]
[1753620375672,5.3326,3820.4,3820.3,25.25913]
[1753620375869,0.2,3821.9,3820.9,0.8585]
[1753620375870,5.3326,3821.0,3820.9,0.8585]
[1753620376167,5.3326,3821.0,3820.9,0.52325]
[1753620376374,5.3326,3821.0,3820.9,22.07925]
[1753620376567,5.3326,3821.0,3820.9,22.08425]
[1753620377273,3.5698,3821.4,3821.3,0.52319]
[1753620377465,3.5698,3821.4,3821.3,27.41599]
[1753620377466,4.4349,3821.4,3821.3,27.41599]
[1753620378171,4.4349,3821.7,3821.6,5.86095]
[1753620378370,3.4247,3821.7,3821.6,30.64675]
[1753620378569,1.5268,3821.7,3821.6,30.64675]
[1753620378766,2.3214,3821.9,3821.8,3.59853]
[1753620378972,4.6349,3821.9,3821.8,22.10913]
[1753620379170,4.6349,3821.9,3821.8,21.586]
[1753620379371,5.5326,3821.9,3821.8,22.10913]
[1753620379570,5.5326,3821.9,3821.8,22.10613]
[1753620379869,5.5326,3821.9,3821.8,0.52313]
[1753620380177,5.5326,3821.9,3821.8,22.09913]
[1753620381875,6.29829812,3821.9,3821.8,22.09913]
[1753620382274,5.5326,3821.9,3821.8,0.52313]
[1753620382478,5.5326,3821.9,3821.8,22.08013]
[1753620382667,5.5326,3821.9,3821.8,0.52313]
[1753620382873,5.5326,3821.9,3821.2,3.2078]
[1753620382874,2.1214,3821.3,3821.2,3.2078]
[1753620383175,5.3326,3821.3,3821.2,25.28101]
[1753620383480,5.3326,3821.3,3821.2,25.28501]
[1753620384478,5.3326,3821.3,3821.2,25.27701]
[1753620384880,5.3326,3821.3,3821.2,3.73101]
[1753620385077,5.3326,3821.3,3821.2,25.27201]
[1753620385376,5.85579,3821.3,3821.2,3.2078]
[1753620385581,5.85585,3820.9,3820.8,0.52325]
[1753620385769,5.3326,3820.9,3820.8,22.06525]
[1753620385970,5.3326,3820.9,3820.8,0.52325]
[1753620386169,5.3326,3820.9,3820.8,22.05925]
[1753620386374,5.85585,3820.9,3820.8,22.05925]
[1753620386573,0.52328,3820.8,3820.7,0.52327]
[1753620386777,5.3326,3820.5,3820.4,5.30312]
[1753620387481,5.3326,3820.5,3820.4,26.83212]
[1753620387778,5.8559,3820.5,3820.4,26.83212]
[1753620387981,5.8559,3820.5,3820.4,5.30312]
[1753620388682,5.8559,3820.5,3820.4,3.2078]
[1753620389181,5.4197,3820.1,3820.0,3.73117]
[1753620389977,5.94306,3820.1,3820.0,3.73117]
[1753620390174,5.94306,3820.1,3820.0,3.2078]
[1753620390381,5.4197,3819.7,3819.6,3.78713]
[1753620390682,5.4197,3819.7,3819.5,3.2078]
[1753620390683,2.1549,3819.6,3819.5,3.2078]
[1753620390876,5.94313,3819.6,3819.5,3.2078]
[1753620391082,5.94313,3819.6,3819.5,3.7865]
[1753620391279,5.4197,3819.6,3819.5,3.7865]
[1753620391676,5.94313,3819.6,3819.5,5.3906]
[1753620391982,5.4197,3819.6,3819.5,6.4715]
[1753620392180,5.94313,3819.6,3819.5,6.4715]
[1753620392687,5.4197,3819.6,3819.5,6.4715]
[1753620392877,5.94313,3819.6,3819.5,6.4715]
[1753620393782,5.94313,3819.6,3819.5,7.381]
[1753620394686,5.94313,3819.6,3819.5,6.4715]
[1753620394890,5.94313,3819.6,3819.5,3.7865]
[1753620395782,5.94313,3819.6,3819.5,4.8674]
[1753620396178,5.94746704,3819.6,3819.5,4.8674]
[1753620397586,5.94746704,3819.6,3819.5,6.4715]
[1753620398586,5.94746704,3819.6,3819.5,3.2078]
[1753620399288,5.94318,3819.2,3819.1,26.3294]
[1753620399485,5.94318,3819.2,3819.1,6.4715]
[1753620402287,5.94318,3819.2,3819.1,7.381]
[1753620402488,5.94318,3819.2,3819.1,8.7933]
[1753620403290,5.94318,3819.2,3819.1,6.4715]
[1753620403493,5.94318,3819.2,3819.1,5.3906]
[1753620403683,5.94318,3819.2,3819.1,0.5787]
[1753620403884,3.73381,3819.0,3818.9,23.1036]
[1753620404185,5.94321,3819.0,3818.9,27.0295]
[1753620404384,5.94321,3819.0,3818.9,27.0195]
[1753620404588,5.94321,3819.0,3818.9,27.0145]
[1753620404786,5.94321,3819.0,3818.9,27.0135]
[1753620405491,5.94321,3819.0,3818.9,27.0115]
[1753620405993,5.94321,3819.0,3818.9,4.1732]
[1753620406181,5.94321,3819.0,3818.9,0.5787]
[1753620406385,5.94324,3818.8,3818.7,25.2055]
[1753620406587,5.94324,3818.8,3818.7,26.2864]
[1753620407390,5.94324,3818.8,3818.7,4.8674]
[1753620409692,5.94328,3818.5,3818.4,0.5787]
[1753620409888,1.30888,3818.8,3818.2,0.9095]
[1753620409889,5.9433,3818.3,3818.2,0.5787]
[1753620410088,2.67853,3818.1,3818.0,1.6596]
[1753620410284,5.94333,3818.1,3818.0,1.6596]
[1753620410494,5.94333,3818.1,3818.0,5.5855]
[1753620410987,4.58815,3818.0,3817.9,3.2078]
[1753620411193,5.94335,3818.0,3817.9,3.2078]
[1753620411384,0.52366,3817.9,3817.6,1.0809]
[1753620411589,5.94336,3817.9,3817.5,5.5296]
[1753620411792,5.94336,3817.9,3817.5,4.1173]
[1753620412693,5.94336,3817.9,3817.5,3.2078]
[1753620414593,5.94336,3817.9,3817.3,1.0809]
[1753620414798,10.94336,3817.9,3817.3,1.0809]
[1753620416501,5.94336,3817.9,3817.3,1.0809]
[1753620418397,5.94336,3817.9,3817.8,6.37e-06]
[1753620419693,6.70462163,3817.9,3817.8,6.37e-06]
[1753620420193,11.70462163,3817.9,3817.8,6.37e-06]
[1753620420390,10.94336,3817.9,3817.8,6.37e-06]
[1753620421200,11.70424339,3817.9,3817.8,6.37e-06]
[1753620421500,12.46509032,3817.9,3817.8,6.37e-06]
[1753620422292,1.3092,3817.8,3816.8,3.306]
[1753620422597,5.8923,3816.9,3816.8,5.4312]
[1753620423295,5.89231,3816.8,3816.7,5.4312]
[1753620423994,0.52381,3816.8,3816.7,5.4312]
[1753620424599,0.52381,3816.8,3816.7,9.16282]
[1753620427299,1.30945,3817.1,3816.7,5.85682]
[1753620427505,3.75451,3817.5,3817.4,4.9649]
[1753620427702,6.65210629,3817.5,3817.4,4.9649]
[1753620427898,5.89221,3817.5,3817.4,4.9649]
[1753620429698,1.21541,3817.5,3817.4,4.9649]
[1753620433199,2.53211,3817.5,3817.4,4.9649]
[1753620435104,4.17781,3817.5,3817.4,4.9649]
[1753620435403,6.65419819,3817.5,3817.4,4.9649]
[1753620437207,5.89226,3817.2,3817.1,6.1189]
[1753620437698,6.65487885,3817.2,3817.1,7.4826]
[1753620440106,6.65487885,3817.2,3817.1,8.1727]
[1753620441203,2.16228677,3817.9,3817.1,8.1727]
[1753620441204,1.40625078,3819.0,3818.6,0.8601]
[1753620441405,0.00433704,3819.6,3819.5,2.56954]
[1753620441702,0.22555224,3819.6,3819.5,5.77734]
[1753620442104,0.00433704,3819.6,3819.5,5.77734]
[1753620443305,4.30253704,3819.6,3819.5,5.54414]
[1753620443506,5.37283704,3819.6,3819.5,5.54414]
[1753620444108,5.37283704,3819.6,3819.5,5.89303442]
[1753620444703,5.37283704,3819.6,3819.5,6.11903026]
[1753620444908,5.37283704,3819.6,3819.5,5.01589026]
[1753620445208,5.37283704,3819.6,3819.5,5.53933026]
[1753620445413,5.37283704,3819.6,3819.5,6.11903026]
[1753620445614,5.37283704,3819.6,3819.5,6.11876957]
[1753620445912,5.37283704,3819.6,3819.5,5.59532957]
[1753620446212,5.37283704,3819.6,3819.5,5.24643515]
[1753620446413,5.37283704,3819.6,3819.5,5.76987515]
[1753620446608,5.37283704,3819.6,3819.5,5.24643515]
[1753620446808,5.89626704,3819.6,3819.5,5.24643515]
[1753620447009,5.37283704,3819.6,3819.5,5.24643515]
[1753620447508,5.89626704,3819.6,3819.5,5.46963515]
[1753620447704,0.2,3821.9,3821.8,0.8987]
[1753620447907,0.2,3821.9,3821.8,3.2078]
[1753620447908,6.20691,3821.9,3821.8,3.2078]
[1753620448103,5.6838,3821.9,3821.4,0.6942]
[1753620448309,2.4495,3821.2,3820.6,0.6942]
[1753620448515,3.2078,3821.5,3820.5,3.2078]
[1753620448715,3.3119,3820.6,3820.2,0.6942]
[1753620448912,3.3119,3820.4,3820.2,1.21754]
[1753620449106,1.018,3820.4,3820.3,0.52333]
[1753620449302,1.018,3820.4,3820.3,0.74849567]
[1753620449717,3.3119,3820.4,3820.3,0.74849567]
[1753620450011,3.3119,3820.4,3820.3,0.22516567]
[1753620450012,3.83522,3820.4,3820.3,0.22516567]
[1753620450715,2.2939,3820.3,3820.2,0.6942]
[1753620451214,2.2939,3820.3,3820.2,1.21754]
[1753620451615,1.8804,3818.5,3817.8,0.19382637]
[1753620451928,3.83556,3817.9,3817.8,0.19382637]
[1753620452513,25.97356,3817.9,3817.8,0.19382637]
[1753620453211,0.52373,3817.4,3817.3,0.2248]
[1753620453411,3.83563,3817.4,3817.3,0.2248]
[1753620453811,3.3119,3817.1,3816.6,0.8498]
[1753620454009,0.52381,3816.8,3816.7,0.3405935]
[1753620454315,3.83571,3816.8,3816.7,3.5e-06]
[1753620454511,3.83571,3816.8,3816.4,0.2248]
[1753620454712,2.81777,3816.4,3816.3,0.7121235]